bitfinex-derivatives/quotes_BNBF0:USTF0_20250315
["timestamp","ask_amount","ask_price","bid_price","bid_amount"]
[1742034014005,0.30171545,596.54,596.06,1.721]
[1742034014201,0.30171545,596.53,596.06,1.721]
[1742034014404,0.29200143,596.54,596.06,1.721]
[1742034014607,0.30171545,596.52,596.06,1.721]
[1742034014809,0.30171545,596.51,596.06,1.721]
[1742034015009,0.30171545,596.5,596.06,1.721]
[1742034015204,0.30171545,596.53,596.06,1.721]
[1742034015405,0.30171545,596.52,596.06,1.721]
[1742034015702,0.30171545,596.51,596.06,1.721]
[1742034015905,0.30171545,596.53,596.06,1.721]
[1742034016106,0.29200143,596.54,596.06,1.721]
[1742034016107,0.30171545,596.52,596.06,1.721]
[1742034016307,0.30171545,596.53,596.06,1.721]
[1742034016509,0.29200143,596.54,596.06,1.721]
[1742034016704,0.30147157,596.53,596.06,1.721]
[1742034017308,0.30147157,596.63,596.06,1.721]
[1742034017509,0.29200878,596.52,596.06,1.721]
[1742034017709,0.30147157,596.51,596.06,1.721]
[1742034017905,0.33521051,596.64,596.06,1.721]
[1742034018209,0.30146055,596.63,596.06,1.721]
[1742034019506,0.29199653,596.62,596.06,1.721]
[1742034019708,0.30146055,596.61,596.06,1.721]
[1742034020404,0.59345953,596.6,596.06,1.721]
[1742034020609,0.30146055,596.59,596.06,1.721]
[1742034021604,0.29199898,596.6,596.06,1.721]
[1742034021806,0.30148684,596.59,596.06,1.721]
[1742034023308,0.29200143,596.58,596.06,1.721]
[1742034023608,0.30148238,596.57,596.06,1.721]
[1742034025507,0.30148383,596.56,596.06,1.721]
[1742034025810,0.30148383,596.55,596.06,0.879]
[1742034026110,0.30148383,596.54,596.06,0.879]
[1742034026310,0.29200388,596.54,596.06,0.879]
[1742034026511,0.30148383,596.53,596.06,0.879]
[1742034029312,0.30145772,596.52,596.06,0.879]
[1742034029512,0.29201123,596.52,596.06,0.879]
[1742034029712,0.30145772,596.51,596.06,0.879]
[1742034032313,0.29201368,596.5,596.06,0.879]
[1742034032514,0.30145772,596.49,596.06,0.879]
[1742034033816,0.30145772,596.49,595.99,0.9]
[1742034035309,0.5934763,596.48,595.99,0.9]
[1742034035513,0.30145772,596.47,595.99,0.9]
[1742034036716,0.29201858,596.48,595.99,0.9]
[1742034036911,0.30142344,596.47,595.99,0.9]
[1742034038416,0.5934751,596.46,595.99,0.9]
[1742034038609,0.30141728,596.45,595.99,0.9]
[1742034041418,0.29205411,596.44,595.99,0.9]
[1742034041618,0.30141728,596.43,595.99,0.9]
[1742034044318,2.55911613,596.56,595.99,0.9]
[1742034044623,0.29203451,596.42,595.99,0.9]
[1742034044823,0.30147433,596.41,595.99,0.9]
[1742034045024,0.30147433,596.4,595.99,0.9]
[1742034045216,0.30147433,596.63,595.99,0.9]
[1742034045416,0.63669607,596.62,595.99,0.9]
[1742034045618,0.30147433,596.61,595.99,0.9]
[1742034045817,0.33522174,596.62,595.99,0.9]
[1742034046322,0.30144208,596.61,595.99,0.9]
[1742034046525,0.59339084,596.61,595.99,0.9]
[1742034046719,0.30144208,596.6,595.99,0.9]
[1742034047424,0.59345576,596.59,595.99,0.9]
[1742034047623,0.30144208,596.58,595.99,0.9]
[1742034048328,0.30144914,596.57,595.99,0.9]
[1742034048523,0.30144914,596.58,595.99,0.9]
[1742034048724,0.30144914,596.57,595.99,0.9]
[1742034048921,0.30144914,596.56,595.99,0.9]
[1742034049121,0.30144914,596.55,595.99,0.9]
[1742034049331,0.30144914,596.54,595.99,0.9]
[1742034049522,0.30144914,596.58,595.99,0.9]
[1742034049828,0.30144914,596.57,595.99,0.9]
[1742034050126,0.30144914,596.56,595.99,0.9]
[1742034050326,0.30144914,596.55,595.99,0.9]
[1742034052025,0.30148813,596.54,595.99,0.9]
[1742034052227,0.30148813,596.53,595.99,0.9]
[1742034052424,0.30148813,596.52,595.99,0.9]
[1742034052628,0.30148813,596.51,595.99,0.9]
[1742034052930,0.30148813,596.5,595.99,0.9]
[1742034053130,0.30148813,596.55,595.99,0.9]
[1742034053328,0.30148813,596.54,595.99,0.9]
[1742034053630,0.2920198,596.49,595.99,0.9]
[1742034053824,0.30148813,596.48,595.99,0.9]
[1742034054224,0.30148813,596.48,595.93,0.55]
[1742034055322,0.2920198,596.49,595.93,0.55]
[1742034055523,0.30171443,596.48,595.93,0.55]
[1742034056430,0.59380164,596.47,595.93,0.55]
[1742034056631,0.30171443,596.46,595.93,0.55]
[1742034058126,0.30171443,596.46,595.93,1.418]
[1742034059326,0.33522174,596.62,595.93,1.418]
[1742034059327,0.29203818,596.45,595.93,1.418]
[1742034059524,0.30179245,596.44,595.93,1.418]
[1742034060929,0.29203818,596.45,595.93,1.418]
[1742034061134,0.30178626,596.44,595.93,1.418]
[1742034061738,0.30179591,596.43,595.93,1.418]
[1742034061931,0.30179591,596.44,595.93,1.418]
[1742034062436,0.29204063,596.42,595.93,1.418]
[1742034062837,0.30179591,596.41,595.93,1.418]
[1742034064640,0.30182093,596.4,595.93,1.418]
[1742034064839,0.30182093,596.41,595.93,1.418]
[1742034065235,0.30182093,596.4,595.93,1.418]
[1742034065437,0.29205411,596.4,595.93,1.418]
[1742034065640,0.30182093,596.39,595.93,1.418]
[1742034068243,0.30182093,596.61,595.93,1.418]
[1742034068542,0.29208108,596.38,595.93,1.418]
[1742034068742,0.30182093,596.37,595.93,1.418]
[1742034068944,0.33523298,596.6,595.93,1.418]
[1742034068945,0.30182093,596.36,595.93,1.418]
[1742034069137,0.30182093,596.59,595.93,1.418]
[1742034069343,0.63706515,596.58,595.93,1.418]
[1742034069642,0.63707077,596.57,595.93,1.418]
[1742034069843,0.63707639,596.56,595.93,1.418]
[1742034070036,0.33526108,596.55,595.93,1.418]
[1742034070241,0.30182093,596.54,595.93,1.418]
[1742034070543,0.33527232,596.53,595.93,1.418]
[1742034070738,0.30182093,596.52,595.93,1.418]
[1742034070938,0.63709887,596.52,595.93,1.418]
[1742034071138,0.30182093,596.51,595.93,1.418]
[1742034071343,0.59387749,596.51,595.93,1.418]
[1742034071549,0.30182093,596.5,595.93,1.418]
[1742034071942,0.29205656,596.51,595.93,1.418]
[1742034072146,0.30182911,596.5,595.93,1.418]
[1742034073545,0.63712391,596.49,595.93,1.418]
[1742034073844,0.30182911,596.48,595.93,1.418]
[1742034074345,0.29207005,596.47,595.93,2.141]
[1742034074644,0.30182911,596.46,595.93,2.141]
[1742034077343,0.30182911,596.47,595.93,2.141]
[1742034077542,0.2920725,596.45,595.93,2.141]
[1742034077745,0.30181323,596.44,595.93,0.723]
[1742034077945,0.30181323,596.43,595.93,0.723]
[1742034078146,0.30181323,596.44,595.93,0.723]
[1742034078343,0.30181323,596.43,595.93,0.723]
[1742034078542,0.2920725,596.45,595.93,0.723]
[1742034078543,0.30181323,596.44,595.93,0.723]
[1742034078846,0.30181323,596.43,595.93,0.723]
[1742034079046,0.30181323,596.44,595.93,0.723]
[1742034079248,0.30181323,596.43,595.93,0.723]
[1742034079545,0.30181323,596.42,595.93,0.723]
[1742034079745,0.30181323,596.44,595.93,0.723]
[1742034079946,0.30181323,596.43,595.93,0.723]
[1742034080142,0.30181323,596.44,595.93,0.723]
[1742034080347,0.29207495,596.42,595.93,0.723]
[1742034080647,0.30181323,596.41,595.93,0.723]
[1742034085052,0.29207495,596.42,595.93,0.723]
[1742034085254,0.30183503,596.41,595.93,0.723]
[1742034086254,0.30183503,596.47,595.93,0.723]
[1742034086454,0.29207127,596.4,595.93,0.723]
[1742034086655,0.30183503,596.39,595.93,0.723]
[1742034087151,0.30183503,596.47,595.93,0.723]
[1742034087358,0.30183503,596.46,595.93,0.723]
[1742034087553,0.30183503,596.47,595.93,0.723]
[1742034087754,0.30183503,596.46,595.93,0.723]
[1742034087954,0.30183503,596.47,595.93,0.723]
[1742034088158,0.30183503,596.46,595.93,0.723]
[1742034088358,0.30183503,596.45,595.93,0.723]
[1742034088556,0.30183503,596.44,595.93,0.723]
[1742034088757,0.33530042,596.48,595.93,0.723]
[1742034088953,0.29207127,596.44,595.93,0.723]
[1742034089153,0.30184017,596.43,595.93,0.723]
[1742034092254,0.30184017,596.42,595.93,0.723]
[1742034092460,0.29206637,596.42,595.93,0.723]
[1742034092761,0.30184017,596.41,595.9,0.562]
[1742034094161,2.55911613,596.38,595.9,0.562]
[1742034094365,0.30184017,596.37,595.9,0.562]
[1742034095462,0.29207985,596.36,595.9,0.562]
[1742034095663,0.30184017,596.35,595.9,0.562]
[1742034096062,2.55911613,596.33,595.9,0.562]
[1742034096258,0.3018479,596.32,595.9,0.562]
[1742034097958,2.55911613,596.33,595.9,0.562]
[1742034098158,0.30184518,596.32,595.9,0.562]
[1742034098559,0.30184518,596.31,595.9,0.562]
[1742034101261,0.30184518,596.31,595.88,0.682]
[1742034101464,0.2920823,596.31,595.88,0.682]
[1742034101665,0.30184518,596.3,595.88,0.682]
[1742034103163,0.30184518,596.3,595.82,0.823]
[1742034103366,2.65578145,596.3,595.82,0.823]
[1742034103565,0.30184518,596.29,595.82,0.823]
[1742034104266,2.55911613,596.23,595.82,0.823]
[1742034104467,0.30184518,596.22,595.82,0.823]
[1742034104668,0.30184265,596.21,595.82,0.823]
[1742034104868,0.30184265,596.2,595.82,0.823]
[1742034105168,0.30184265,596.19,595.82,0.823]
[1742034105368,0.30184265,596.18,595.82,0.823]
[1742034105567,0.30184265,596.22,595.82,0.823]
[1742034105766,0.30184265,596.17,595.82,0.823]
[1742034105967,0.30184265,596.16,595.82,0.823]
[1742034106166,0.30184265,596.21,595.82,0.823]
[1742034106367,0.30184265,596.23,595.82,0.823]
[1742034106566,0.30184265,596.22,595.82,0.823]
[1742034106767,0.30184265,596.23,595.82,0.823]
[1742034108665,0.30184265,596.46,595.82,0.823]
[1742034108865,2.55911613,596.47,595.82,0.823]
[1742034109064,0.30179872,596.46,595.82,0.823]
[1742034109466,0.30179872,596.46,595.83,0.733]
[1742034110169,0.30179872,596.45,595.83,0.733]
[1742034110369,0.30179872,596.44,595.83,0.733]
[1742034111470,0.29203941,596.45,595.83,0.733]
[1742034111670,0.30179097,596.44,595.83,0.733]
[1742034111865,0.29203941,596.45,595.83,0.733]
[1742034112772,0.30179056,596.44,595.83,0.733]
[1742034113370,0.30179056,596.47,595.83,0.733]
[1742034113667,0.29204308,596.43,595.83,0.733]
[1742034113869,0.30179056,596.42,595.83,0.733]
[1742034114070,0.29204308,596.43,595.83,0.733]
[1742034114267,0.30179483,596.42,595.83,0.733]
[1742034115472,0.29204308,596.43,595.84,0.851]
[1742034115672,0.30179302,596.42,595.84,0.851]
[1742034116571,0.30179302,596.41,595.84,0.851]
[1742034116772,0.30179302,596.47,595.84,0.851]
[1742034116972,0.30179302,596.46,595.84,0.851]
[1742034117167,0.30179302,596.45,595.84,0.851]
[1742034117373,0.30179302,596.47,595.84,0.851]
[1742034117572,0.30179302,596.46,595.84,0.851]
[1742034117766,0.30179302,596.47,595.84,0.851]
[1742034117972,0.30179302,596.46,595.84,0.851]
[1742034118167,0.30179302,596.47,595.84,0.851]
[1742034118372,0.30179302,596.46,595.84,0.851]
[1742034118568,0.30179302,596.47,595.84,0.851]
[1742034118871,0.30179302,596.46,595.84,0.851]
[1742034119073,2.31673734,596.9,595.84,0.851]
[1742034119372,0.30177248,596.47,595.84,0.851]
[1742034119568,0.59375921,596.47,595.84,0.851]
[1742034119766,0.30177248,596.46,595.84,0.851]
[1742034120766,0.29198673,596.47,595.84,0.851]
[1742034120970,0.30176773,596.46,595.84,0.851]
[1742034122370,2.55911613,596.77,595.84,0.851]
[1742034122573,0.29203941,596.45,595.84,0.851]
[1742034122767,0.30175912,596.44,595.84,0.851]
[1742034125373,0.30175912,596.43,595.84,0.851]
[1742034125573,0.29203818,596.43,595.84,0.851]
[1742034125770,0.30175912,596.42,595.84,0.851]
[1742034127880,0.29203818,596.43,595.84,0.851]
[1742034128180,3.18005522,597.02,595.84,0.851]
[1742034128181,0.30163183,596.42,595.84,0.851]
[1742034128374,0.30163183,596.47,595.84,0.851]
[1742034128580,0.29203818,596.43,595.84,0.851]
[1742034128780,0.30163183,596.42,595.84,0.851]
[1742034129081,0.30163183,596.42,595.85,0.656]
[1742034129981,0.30162459,596.41,595.85,0.656]
[1742034130177,0.30162459,596.42,595.85,0.656]
[1742034130382,0.30162459,596.41,595.85,0.656]
[1742034130681,0.30162459,596.42,595.85,0.656]
[1742034130877,0.30162459,596.41,595.85,0.656]
[1742034131078,0.30162459,596.42,595.85,0.656]
[1742034131275,0.30162459,596.41,595.85,0.656]
[1742034131577,0.30162459,596.4,595.86,0.636]
[1742034131774,0.30161717,596.39,595.86,0.636]
[1742034131979,0.30161717,596.38,595.86,0.636]
[1742034132174,0.30161717,596.42,595.86,0.636]
[1742034132376,0.30161717,596.41,595.86,0.636]
[1742034132582,0.30161717,596.42,595.86,0.636]
[1742034132782,0.30161717,596.41,595.87,0.607]
[1742034132982,0.30161717,596.42,595.87,0.607]
[1742034133482,0.29204308,596.43,595.87,0.607]
[1742034133683,0.30162563,596.41,595.87,0.607]
[1742034133981,0.30162563,596.4,595.87,0.607]
[1742034134181,0.30162563,596.42,595.87,0.607]
[1742034135181,0.30162563,596.42,595.88,0.626]
[1742034135380,0.30163618,596.41,595.88,0.626]
[1742034135582,0.30163618,596.42,595.88,0.626]
[1742034135782,0.30163618,596.41,595.88,0.626]
[1742034135977,0.30163618,596.4,595.88,0.626]
[1742034136179,0.30163618,596.42,595.88,0.626]
[1742034136384,0.30163618,596.41,595.88,0.626]
[1742034136583,0.30163618,596.42,595.88,0.626]
[1742034136780,0.30163618,596.41,595.88,0.626]
[1742034136979,0.30163618,596.47,595.88,0.626]
[1742034137382,0.30165239,596.46,595.88,0.626]
[1742034137585,0.30165239,596.47,595.88,0.626]
[1742034137785,0.30165239,596.46,595.88,0.626]
[1742034137985,0.30165239,596.47,595.88,0.626]
[1742034138181,0.30165239,596.46,595.88,0.626]
[1742034138487,0.30165239,596.45,595.88,0.626]
[1742034138684,0.30165239,596.44,595.88,0.626]
[1742034138880,0.30165239,596.47,595.88,0.626]
[1742034139081,0.30165239,596.46,595.88,0.626]
[1742034139283,0.30165239,596.47,595.88,0.626]
[1742034140979,2.55911613,596.73,595.88,0.626]
[1742034141180,0.30165687,596.47,595.88,0.626]
[1742034142689,0.29201613,596.5,595.88,0.626]
[1742034142890,0.30164468,596.47,595.89,0.801]
[1742034145690,0.30164468,596.47,595.9,0.588]
[1742034145989,0.30164468,596.47,595.9,1.158]
[1742034160200,0.30164468,596.47,595.9,1.74]
[1742034160599,0.30164468,596.47,595.9,2.628]
[1742034161307,0.33530042,596.48,595.9,2.628]
[1742034161508,0.30160461,596.47,595.9,2.628]
[1742034162106,0.30160461,596.47,595.9,3.532]
[1742034164807,0.33530042,596.48,595.9,3.532]
[1742034165507,0.33530042,596.48,595.9,4.34]
[1742034166902,0.30156342,596.47,595.9,4.34]
[1742034172210,0.30154335,596.46,595.9,4.34]
[1742034172509,0.30154335,596.45,595.9,4.34]
[1742034172705,0.30154335,596.44,595.9,4.34]
[1742034172902,0.30154335,596.47,595.9,4.34]
[1742034173107,0.30154335,596.46,595.9,4.34]
[1742034173309,0.33530042,596.48,595.9,4.34]
[1742034173310,0.30154335,596.45,595.9,4.34]
[1742034173511,0.30154335,596.47,595.9,4.34]
[1742034173706,0.30154335,596.46,595.9,4.34]
[1742034173909,0.33530042,596.48,595.9,4.34]
[1742034173910,0.30152392,596.45,595.9,4.34]
[1742034174110,0.30152392,596.47,595.9,4.34]
[1742034174310,0.30152392,596.46,595.9,4.34]
[1742034174511,0.30152392,596.47,595.9,4.34]
[1742034174710,0.30152392,596.46,595.9,4.34]
[1742034174914,0.30152392,596.45,595.9,4.34]
[1742034175115,0.30152392,596.47,595.9,4.34]
[1742034175313,0.30152392,596.46,595.9,4.34]
[1742034175513,0.30152392,596.47,595.9,4.34]
[1742034175714,0.30152392,596.46,595.9,4.34]
[1742034175916,0.30152392,596.47,595.9,4.34]
[1742034179422,0.30151017,596.46,595.9,4.34]
[1742034179620,0.30151017,596.47,595.9,4.34]
[1742034179820,0.30151017,596.46,595.9,4.34]
[1742034180022,0.30151017,596.47,595.9,4.34]
[1742034180220,0.30151017,596.46,595.9,4.34]
[1742034180421,0.30151017,596.45,595.9,4.34]
[1742034180618,0.30151017,596.47,595.9,4.34]
[1742034180815,0.33530042,596.48,595.9,4.34]
[1742034181021,0.30150691,596.47,595.9,4.34]
[1742034182717,0.30150691,596.47,595.9,4.89]
[1742034186219,0.30152092,596.46,595.9,4.89]
[1742034186426,0.30152092,596.45,595.9,4.89]
[1742034186620,0.30152092,596.47,595.9,4.89]
[1742034186822,0.30152092,596.46,595.9,4.89]
[1742034187024,0.30152092,596.45,595.9,4.89]
[1742034187228,0.30152092,596.44,595.9,4.89]
[1742034187422,0.30152092,596.43,595.9,4.89]
[1742034187628,0.30152092,596.47,595.9,4.89]
[1742034187829,0.30152092,596.46,595.9,4.89]
[1742034188028,0.30152092,596.47,595.9,4.89]
[1742034188223,0.30152092,596.46,595.9,4.89]
[1742034188422,0.30152092,596.47,595.9,4.89]
[1742034188628,0.30152092,596.46,595.9,4.89]
[1742034188928,0.30152092,596.45,595.9,4.89]
[1742034189130,0.30152092,596.44,595.9,4.89]
[1742034189329,0.30152092,596.47,595.9,4.89]
[1742034189526,0.30152092,596.43,595.9,4.89]
[1742034189727,0.30152092,596.42,595.9,4.89]
[1742034189925,0.30152092,596.47,595.9,4.89]
[1742034190125,0.30152092,596.46,595.9,4.89]
[1742034190332,0.30152092,596.47,595.9,4.89]
[1742034190534,0.30152092,596.46,595.9,4.89]
[1742034190733,0.30152092,596.47,595.9,4.89]
[1742034190934,0.30152092,596.46,595.9,4.89]
[1742034191134,0.30152092,596.45,595.9,4.89]
[1742034191335,0.30152092,596.47,595.9,4.89]
[1742034191527,0.30152092,596.44,595.9,4.89]
[1742034191728,0.30152092,596.43,595.9,4.89]
[1742034191932,0.30152092,596.47,595.9,4.89]
[1742034193537,0.30151409,596.46,595.9,4.89]
[1742034193732,0.30151409,596.47,595.9,4.89]
[1742034193929,0.30151409,596.46,595.9,4.89]
[1742034194133,0.30151409,596.47,595.9,4.89]
[1742034194333,0.30151409,596.46,595.9,4.89]
[1742034194629,0.30151409,596.45,595.9,4.89]
[1742034194830,0.30151409,596.47,595.9,4.89]
[1742034195034,0.33530042,596.48,595.9,4.89]
[1742034195235,0.30150873,596.47,595.9,4.89]
[1742034196336,2.86062486,596.47,595.9,4.89]
[1742034196636,0.30150873,596.46,595.9,4.89]
[1742034196834,2.55911613,596.47,595.9,4.89]
[1742034197035,0.30151795,596.46,595.9,4.89]
[1742034198129,0.30151795,596.45,595.9,4.89]
[1742034198330,0.30151795,596.44,595.9,4.89]
[1742034198533,0.30151795,596.47,595.9,4.89]
[1742034198732,0.33530042,596.48,595.9,4.89]
[1742034198935,0.30151848,596.47,595.9,4.89]
[1742034200734,0.30165665,596.46,595.9,4.89]
[1742034200930,0.33530042,596.48,595.9,4.89]
[1742034200931,0.30165665,596.45,595.9,4.89]
[1742034201132,0.30165665,596.44,595.9,4.89]
[1742034201335,0.30165665,596.47,595.9,4.89]
[1742034201537,0.30165665,596.46,595.9,4.89]
[1742034201729,0.30165665,596.47,595.9,4.89]
[1742034201932,0.30165665,596.46,595.9,4.89]
[1742034202133,0.30165665,596.47,595.9,4.89]
[1742034202329,0.33530042,596.48,595.9,4.89]
[1742034202535,0.30165226,596.47,595.9,4.89]
[1742034204035,0.33530042,596.48,595.9,4.89]
[1742034204236,0.30164485,596.47,595.9,4.89]
[1742034204833,0.30163518,596.46,595.9,4.89]
[1742034205034,0.30163518,596.47,595.9,4.89]
[1742034205233,0.30163518,596.46,595.9,4.89]
[1742034205634,0.30163518,596.45,595.9,4.89]
[1742034205831,0.30163518,596.47,595.9,4.89]
[1742034206135,0.30163518,596.46,595.9,4.89]
[1742034206335,0.30163518,596.47,595.9,4.89]
[1742034206537,0.59366601,596.46,595.9,4.89]
[1742034206736,0.30163518,596.45,595.9,4.89]
[1742034209438,0.29206269,596.44,595.9,4.89]
[1742034209739,0.30163518,596.43,595.9,4.89]
[1742034212341,0.30163518,596.47,595.9,4.89]
[1742034212539,0.2920676,596.42,595.9,4.89]
[1742034212743,0.30163518,596.41,595.9,4.89]
[1742034215243,0.30157739,596.4,595.9,4.89]
[1742034215548,0.30157739,596.39,595.9,4.34]
[1742034215944,0.30157739,596.39,595.9,2.04]
[1742034216948,0.30156991,596.38,595.9,2.04]
[1742034217146,0.30156991,596.37,595.9,2.04]
[1742034217349,0.30156991,596.36,595.9,2.04]
[1742034217548,0.30156991,596.39,595.9,2.04]
[1742034217746,0.30156991,596.38,595.9,2.04]
[1742034217948,0.30156991,596.39,595.9,2.04]
[1742034218143,0.30156991,596.38,595.9,2.04]
[1742034218343,0.30156991,596.37,595.9,2.04]
[1742034218547,0.29208475,596.38,595.9,2.04]
[1742034218744,0.30156655,596.37,595.9,2.04]
[1742034221351,0.29209211,596.36,595.9,2.04]
[1742034221748,0.30156655,596.35,595.9,2.04]
[1742034224147,0.30156983,596.34,595.9,2.04]
[1742034224351,0.30156983,596.33,595.9,1.458]
[1742034224549,0.29209456,596.34,595.89,0.626]
[1742034224748,0.30156983,596.33,595.89,0.626]
[1742034226956,0.29209456,596.34,595.89,0.626]
[1742034227155,0.30156499,596.33,595.89,0.626]
[1742034227355,0.30156499,596.32,595.89,1.357]
[1742034227550,0.29208108,596.33,595.89,1.357]
[1742034227756,0.30156499,596.32,595.89,1.357]
[1742034228054,0.30156481,596.31,595.89,1.357]
[1742034228255,0.30156481,596.32,595.89,1.357]
[1742034228455,0.30156481,596.31,595.89,1.357]
[1742034228755,0.30156481,596.3,595.89,1.357]
[1742034228958,0.30156481,596.32,595.89,1.357]
[1742034229155,0.30156481,596.31,595.89,1.357]
[1742034229450,0.30156481,596.3,595.89,1.357]
[1742034229659,0.30156481,596.32,595.89,1.357]
[1742034229858,0.30161246,596.31,595.89,1.357]
[1742034230155,0.30161246,596.3,595.89,1.357]
[1742034230351,0.29207005,596.35,595.89,1.357]
[1742034230557,0.30161246,596.34,595.89,1.357]
[1742034231460,0.29207005,596.35,595.89,1.357]
[1742034231657,0.30161905,596.34,595.89,1.357]
[1742034232457,0.30161905,596.33,595.89,1.357]
[1742034232658,0.30161905,596.47,595.89,1.357]
[1742034232853,0.30161905,596.32,595.89,1.357]
[1742034233053,0.30161905,596.31,595.89,1.357]
[1742034233258,0.30161905,596.47,595.89,1.357]
[1742034233454,0.33530042,596.48,595.89,1.357]
[1742034233455,0.59364375,596.46,595.89,1.357]
[1742034233658,0.30161905,596.45,595.89,1.357]
[1742034238263,0.30168575,596.45,595.9,1.663]
[1742034239368,0.30168575,596.47,595.9,1.663]
[1742034239567,0.30168575,596.46,595.9,1.663]
[1742034239867,0.30168575,596.45,595.9,1.663]
[1742034240164,0.30168575,596.44,595.9,1.663]
[1742034240364,0.30168575,596.47,595.9,1.663]
[1742034240665,0.627319,596.48,595.9,1.663]
[1742034240866,0.30160764,596.46,595.9,1.663]
[1742034241067,0.30160764,596.45,595.9,1.663]
[1742034241466,0.30160764,596.44,595.9,1.663]
[1742034241661,0.30160764,596.47,595.9,1.663]
[1742034241866,0.30160764,596.46,595.9,1.663]
[1742034242063,0.30160764,596.47,595.9,1.663]
[1742034242269,0.30159743,596.46,595.9,1.663]
[1742034242464,0.30159743,596.47,595.9,1.663]
[1742034242672,0.30159743,596.46,595.9,2.481]
[1742034242869,0.30159743,596.47,595.9,2.481]
[1742034243073,0.30159743,596.46,595.9,2.481]
[1742034243270,0.30159743,596.47,595.9,2.481]
[1742034243575,0.30159743,596.46,595.9,2.481]
[1742034243869,0.30159743,596.45,595.9,2.481]
[1742034244075,0.30159743,596.47,595.9,2.481]
[1742034244375,0.627319,596.48,595.9,2.481]
[1742034245169,0.30158612,596.47,595.9,2.481]
[1742034246979,0.30158612,596.47,595.9,3.257]
[1742034250076,0.30158612,596.47,595.9,3.797]
[1742034253581,0.30155066,596.46,595.9,3.797]
[1742034253885,0.30155066,596.45,595.9,3.797]
[1742034254085,0.30155066,596.47,595.9,3.797]
[1742034254288,0.30155066,596.46,595.9,3.797]
[1742034254486,0.30155066,596.47,595.9,3.797]
[1742034254680,0.29203328,596.46,595.9,3.797]
[1742034254886,0.30155066,596.45,595.9,3.797]
[1742034256585,0.30155066,596.45,595.9,4.647]
[1742034256986,0.29203328,596.46,595.9,4.647]
[1742034257187,0.30154167,596.44,595.9,4.647]
[1742034257386,0.30154167,596.43,595.9,5.181]
[1742034257586,0.29203328,596.45,595.9,5.181]
[1742034257784,0.30154167,596.44,595.9,5.181]
[1742034260387,0.30154167,596.47,595.9,5.181]
[1742034260592,0.29203696,596.43,595.9,5.181]
[1742034260795,0.30154167,596.42,595.9,5.181]
[1742034262691,0.30151553,596.41,595.9,5.181]
[1742034262892,0.29203696,596.43,595.9,5.181]
[1742034263293,0.33530042,596.48,595.9,5.181]
[1742034263493,0.30146241,596.47,595.9,5.181]
[1742034263694,0.29204799,596.42,595.9,5.181]
[1742034264099,0.30146241,596.41,595.9,5.181]
[1742034265198,0.29204799,596.42,595.9,5.181]
[1742034265401,0.30154495,596.41,595.9,5.181]
[1742034266398,0.30154495,596.47,595.9,5.181]
[1742034266699,0.30154495,596.46,595.9,5.181]
[1742034266894,0.30154495,596.45,595.9,5.181]
[1742034267094,0.30154495,596.47,595.9,5.181]
[1742034267294,0.30154495,596.46,595.9,5.181]
[1742034267500,0.30154495,596.47,595.9,5.181]
[1742034268602,0.2920725,596.46,595.9,5.181]
[1742034268801,0.30154495,596.45,595.9,5.181]
[1742034269400,0.5936199,596.44,595.9,5.181]
[1742034269705,0.30154495,596.43,595.9,5.181]
[1742034271799,0.29207495,596.44,595.9,5.181]
[1742034271997,0.30150215,596.42,595.9,5.181]